fUSD/lending_fUSD_20240913
["ID","MTS","AMOUNT","RATE_DAILY","PERIOD"]
[337966609,1726218658701,-2497.79507697,0.00015,2]
[337966611,1726218658714,-1491.15000001,0.00015,2]
[337966613,1726218658726,-16062.3791908,0.00015,2]
[337966616,1726218658739,-78110.22703525,0.00015,2]
[337966618,1726218658749,-8290.69354634,0.00015,2]
[337966620,1726218658761,-430.72220257,0.00015,2]
[337966622,1726218658772,-2335.18041205,0.00015,2]
[337966625,1726218658785,-1383.40857251,0.00015,2]
[337966627,1726218658796,-824.59977352,0.00015,2]
[337966629,1726218658808,-1750.24114476,0.00015,2]
[337966632,1726218658820,-316.01403212,0.00015,2]
[337966634,1726218658832,-2020.29015397,0.00015,2]
[337966637,1726218658848,-329.20700671,0.00015,2]
[337966639,1726218658864,-5605.89535856,0.00015,2]
[337966642,1726218658876,-704.26118557,0.00015,2]
[337967794,1726218703026,1570.0,0.000102,5]
[337967796,1726218861421,840.9,0.00010959,2]
[337967797,1726218927398,437.17,0.00010537,2]
[337967798,1726219115102,1050.0,0.00011,2]
[337967799,1726219467103,459.35,0.00010441,2]
[337967800,1726219592365,231.79,0.00010959,2]
[337967838,1726219831933,-718.33,0.00012168,2]
[337967839,1726219831942,-400.0,0.00012333,2]
[337967840,1726219831952,-24.67,0.00012343,2]
[337967841,1726219831964,-225.33,0.00012343,2]
[337967842,1726219831974,-172.32,0.00012347,2]
[337967843,1726219831983,-70.7352,0.00012604,2]
[337967844,1726219831994,-229.2648,0.00012604,2]
[337967845,1726219832009,-351.9152,0.00012605,2]
[337967846,1726219832020,-360.76825919,0.00012605,2]
[337967847,1726219832031,-42152.76357282,0.00012605,2]
[337967848,1726219832076,-2314.4383043,0.00012605,2]
[337967849,1726219832088,-4497.71955579,0.00012605,2]
[337967850,1726219832099,-322.3951079,0.00012605,2]
[337967851,1726219832110,-27.6048921,0.00012605,2]
[337967852,1726219832138,-730.18661452,0.00012605,2]
[337967853,1726219832147,-459.35,0.00012705,2]
[337967854,1726219832156,-167.0,0.00012707,2]
[337967855,1726219832166,-150.0,0.00012879,2]
[337967856,1726219832175,-150.99,0.00012879,2]
[337967857,1726219832184,-1688.15161609,0.0001288,2]
[337967858,1726219832196,-8680.88328834,0.0001288,2]
[337967859,1726219832207,-4670.58140367,0.0001288,2]
[337967860,1726219832218,-1390.07010212,0.0001288,2]
[337967862,1726219832230,-849.97896667,0.0001288,2]
[337967864,1726219832245,-65865.60717121,0.0001288,2]
[337967865,1726219832255,-324.23234277,0.0001289,2]
[337967866,1726219832264,-7500.0,0.000129,2]
[337967867,1726219832273,-499.99,0.000129,2]
[337967868,1726219832282,-2368.96955001,0.00012927,2]
[337967870,1726219832291,-438.0,0.00012973,2]
[337967871,1726219832300,-500.0,0.00012973,2]
[337967872,1726219832475,-500.0,0.00012973,2]
[337967873,1726219832485,-150.8,0.0001298,2]
[337967874,1726219832496,-150.8,0.0001298,2]
[337967875,1726219832506,-150.8,0.0001298,2]
[337967876,1726219832515,-500.0,0.00012989,2]
[337967877,1726219832527,-500.0,0.00012989,2]
[337967878,1726219832536,-500.0,0.00012989,2]
[337967879,1726219832545,-500.0,0.00012989,2]
[337967880,1726219832555,-500.0,0.00012989,2]
[337967881,1726219832564,-235.65727592,0.00012989,2]
[337967882,1726219832574,-500.0,0.00012989,2]
[337967883,1726219832583,-500.0,0.00012989,2]
[337967884,1726219832593,-500.0,0.00012989,2]
[337967885,1726219832603,-500.0,0.00012989,2]
[337967886,1726219832613,-509.57360251,0.00012989,2]
[337967887,1726219832622,-500.0,0.00012989,2]
[337967888,1726219832632,-500.0,0.00012989,2]
[337967889,1726219832642,-500.0,0.00012989,2]
[337967890,1726219832651,-500.0,0.00012989,2]
[337967891,1726219832661,-500.0,0.00012989,2]
[337967892,1726219832670,-392.42094662,0.00012989,2]
[337967893,1726219832680,-219.76902392,0.00012989,2]
[337967894,1726219832690,-624.7142571,0.00012989,2]
[337967895,1726219832699,-500.0,0.00012989,2]
[337967896,1726219832709,-500.0,0.00012989,2]
[337967897,1726219832719,-845.22,0.00012989,2]
[337967898,1726219832728,-500.0,0.00012989,2]
[337967899,1726219832738,-500.0,0.00012989,2]
[337967900,1726219832747,-5061.4,0.00012989,2]
[337967901,1726219832756,-500.0,0.00012989,2]
[337967902,1726219832766,-500.0,0.00012989,2]
[337967903,1726219832776,-500.0,0.00012989,2]
[337967904,1726219832785,-150.8,0.0001299,2]
[337967905,1726219832795,-15737.73372825,0.0001299,2]
[337967906,1726219832807,-1075.43,0.0001299,2]
[337967907,1726219832819,-328.01300429,0.0001299,2]
[337967908,1726219832830,-883.41898325,0.0001299,2]
[337967909,1726219832842,-3649.1702025,0.0001299,2]
[337967910,1726219832854,-328.4348001,0.0001299,2]
[337967911,1726219838045,-705.09885338,0.0001299,2]
[337967912,1726219838058,-5231.0,0.0001299,2]
[337967913,1726219838106,-44806.43158361,0.0001299,2]
[337967914,1726219838167,-5146.02669942,0.0001299,2]
[337967915,1726219838179,-3704.1009641,0.0001299,2]
[337967916,1726219838227,-2973.57485311,0.0001299,2]
[337967917,1726219838238,-473.3383626,0.0001299,2]
[337967918,1726219838249,-372.94911677,0.0001299,2]
[337967919,1726219838260,-1355.02815999,0.0001299,2]
[337967920,1726219838271,-8076.7199976,0.0001299,2]
[337967921,1726219838342,-307319.90967746,0.0001299,2]
[337967922,1726219838355,-887531.89384547,0.0001299,2]
[337967923,1726219838370,-27122.01747588,0.0001299,2]
[337967924,1726219838379,-150.8,0.0001299,2]
[337967925,1726219838388,-150.8,0.0001299,2]
[337967926,1726219838397,-150.8,0.0001299,2]
[337967927,1726219838407,-150.8,0.0001299,2]
[337967928,1726219838416,-150.8,0.0001299,2]
[337967929,1726219838425,-150.8,0.0001299,2]
[337967930,1726219838434,-150.8,0.0001299,2]
[337967931,1726219838443,-150.8,0.0001299,2]
[337967932,1726219838453,-150.8,0.0001299,2]
[337967933,1726219838462,-150.8,0.0001299,2]
[337967934,1726219838471,-150.8,0.0001299,2]
[337967935,1726219838481,-150.8,0.0001299,2]
[337967936,1726219838490,-150.8,0.0001299,2]
[337967937,1726219838499,-150.8,0.0001299,2]
[337967938,1726219838510,-150.8,0.0001299,2]
[337967939,1726219838520,-150.8,0.0001299,2]
[337967941,1726219838532,-150.8,0.0001299,2]
[337967943,1726219838542,-150.8,0.0001299,2]
[337967945,1726219838552,-150.8,0.0001299,2]
[337967947,1726219838563,-500.0,0.00012999,2]
[337967950,1726219838573,-500.0,0.00012999,2]
[337967952,1726219838583,-500.0,0.00012999,2]
[337967954,1726219838592,-500.0,0.00012999,2]
[337967956,1726219838601,-500.0,0.00012999,2]
[337967958,1726219838611,-466.01280203,0.00012999,2]
[337967960,1726219838620,-500.0,0.00012999,2]
[337967962,1726219838630,-727.66,0.00012999,2]
[337967964,1726219838640,-500.0,0.00012999,2]
[337967966,1726219838649,-744.79,0.00012999,2]
[337967967,1726219838659,-39812.63107321,0.00013,2]
[337967969,1726219838668,-645.39,0.00013,2]
[337967972,1726219838678,-115871.445738,0.00013,2]
[337967974,1726219838690,-3547.97188898,0.00013,2]
[337967976,1726219838701,-20302.02648502,0.00013,2]
[337967978,1726219838712,-504.3514221,0.00013,2]
[337967980,1726219838724,-616.0766574,0.00013,2]
[337967982,1726219838735,-600.5,0.00013,2]
[337967985,1726219838746,-2146.17360397,0.00013,2]
[337967987,1726219838758,-1720.75393469,0.00013,2]
[337967989,1726219838769,-42012.79648187,0.00013,2]
[337967991,1726219838780,-3353.94450525,0.00013,2]
[337967993,1726219838791,-667.24633407,0.00013,2]
[337968119,1726219839980,-271.37002482,0.00013,2]
[337968121,1726219839992,-2141.59058995,0.00013,2]
[337968127,1726219840043,-875.6832297,0.00013,2]
[337968139,1726219840162,-297.50798804,0.00013,2]
[337968141,1726219840174,-349.4,0.00013,2]
[337968143,1726219840186,-3406.05082035,0.00013,2]
[337968145,1726219840197,-473.28023069,0.00013,2]
[337968147,1726219840208,-1917.30000001,0.00013,2]
[337968150,1726219840231,-2329.24,0.00013,2]
[337968416,1726219842948,-1146.36930039,0.00013,2]
[337968419,1726219842960,-3082.32537501,0.00013,2]
[337968493,1726219843681,-776.97662225,0.00013,2]
[337968497,1726219843703,-1080096.53523473,0.00013,2]
[337968499,1726219843714,-1404.61876171,0.00013,2]
[337968501,1726219843725,-410.33862467,0.00013,2]
[337968504,1726219843744,-375.33656211,0.00013,2]
[337968506,1726219843755,-16503.86446484,0.00013,2]
[337968508,1726219843767,-4911.22029618,0.00013,2]
[337968510,1726219843778,-916.74900749,0.00013,2]
[337968513,1726219843789,-784.22039825,0.00013,2]
[337968515,1726219843804,-4568.00000004,0.00013,2]
[337968517,1726219843814,-776.06146747,0.00013,2]
[337968727,1726219846006,-299.07844765,0.00013,2]
[337968729,1726219846020,-57377.61474352,0.00013,2]
[337968731,1726219846033,-1110.1255479,0.00013,2]
[337968733,1726219846045,-3596.64044679,0.00013,2]
[337968735,1726219846056,-1217.64466643,0.00013,2]
[337968737,1726219846068,-1904.96994,0.00013,2]
[337968739,1726219846079,-1744.32203037,0.00013,2]
[337968741,1726219846090,-417.95823573,0.00013,2]
[337968743,1726219846101,-764.97924556,0.00013,2]
[337968745,1726219846114,-324.61636726,0.00013,2]
[337968747,1726219846127,-2763.97217333,0.00013,2]
[337968814,1726219846786,-261.60174887,0.00013,2]
[337968816,1726219846797,-1128.75496496,0.00013,2]
[337968818,1726219846809,-1064.73000001,0.00013,2]
[337968820,1726219846820,-268.25,0.00013,2]
[337968822,1726219846831,-1453.49,0.00013,2]
[337968824,1726219846842,-9923.04667477,0.00013,2]
[337968827,1726219846854,-1134.13449414,0.00013,2]
[337968829,1726219846865,-55489.51273293,0.00013,2]
[337968831,1726219846877,-422.91126348,0.00013,2]
[337968833,1726219846888,-547.44,0.00013,2]
[337968835,1726219846899,-3398.41651,0.00013,2]
[337968837,1726219846910,-8843.92475302,0.00013,2]
[337968840,1726219846922,-8650.26506283,0.00013,2]
[337968842,1726219846933,-678.72349785,0.00013,2]
[337968844,1726219846948,-502.51511395,0.00013,2]
[337968846,1726219846959,-487.94323696,0.00013,2]
[337968849,1726219846970,-1264.7968584,0.00013,2]
[337968851,1726219846981,-2372.81520537,0.00013,2]
[337968853,1726219846992,-1917.4034452,0.00013,2]
[337968855,1726219847003,-1531.57713695,0.00013,2]
[337968857,1726219847014,-850.03340466,0.00013,2]
[337968859,1726219847025,-3168.79943377,0.00013,2]
[337968861,1726219847039,-7416.2350021,0.00013,2]
[337968863,1726219847050,-12410.3791457,0.00013,2]
[337968865,1726219847062,-290.05976315,0.00013,2]
[337968868,1726219847078,-500.0,0.00012989,2]
[337968870,1726219847087,-2201.23101814,0.00013,2]
[337968872,1726219847098,-4694.20147376,0.00013,2]
[337968874,1726219847110,-32947.27196235,0.00013,2]
[337968876,1726219847121,-590.67499999,0.00013,2]
[337968878,1726219847132,-434.012,0.00013,2]
[337968880,1726219847144,-283.49453764,0.00013,2]
[337968882,1726219847154,-8385.9918445,0.00013,2]
[337971196,1726219888464,151.09626015,0.00012,2]
[337971197,1726219943018,250.0,0.00011622,2]
[337971198,1726219958222,508.4,0.00011436,2]
[337971199,1726220079120,170.81,0.00011655,2]
[337971200,1726220159608,156.45,0.00010959,2]
[337971201,1726220245840,897.58761338,0.0001421,120]
[337971202,1726220314726,161.56,0.00011572,2]
[337971203,1726220324579,400.0,0.0001158,2]
[337971204,1726220369233,359.16,0.00011574,2]
[337971205,1726220417910,2855.23,0.00011734,2]
[337971206,1726220418111,2855.23,0.00011737,2]
[337971207,1726220418332,2855.23,0.0001174,2]
[337971208,1726220418542,2855.23,0.00011743,2]
[337971209,1726220418767,2855.23,0.00011746,2]
[337971210,1726220418982,2855.23,0.00011749,2]
[337971211,1726220419197,2855.23,0.00011752,2]
[337971212,1726220419401,2855.23,0.00011755,2]
[337971213,1726220419602,2855.23,0.00011758,2]
[337971214,1726220419815,2855.23,0.00011762,2]
[337971215,1726220420020,2855.23,0.00011765,2]
[337971216,1726220420226,2855.23,0.00011768,2]
[337971217,1726220420432,2855.23,0.00011771,2]
[337971218,1726220420641,2855.23,0.00011774,2]
[337971219,1726220421080,2855.23,0.00011777,2]
[337971220,1726220421281,2855.23,0.0001178,2]
[337971221,1726220421486,2855.23,0.00011783,2]
[337971222,1726220421727,2855.23,0.00011786,2]
[337971223,1726220421948,2855.23,0.00011789,2]
[337971224,1726220422165,2855.23,0.00011792,2]
[337971225,1726220517503,250.0,0.00011908,2]
[337971226,1726220663458,155.2,0.00010959,2]
[337971227,1726220685928,23900.0,0.00011942,2]
[337971228,1726220707162,530.81,0.00010007,2]
[337971229,1726220805619,680.0,0.00012034,2]
[337971230,1726220819983,172.32,0.00012034,2]
[337971234,1726220902863,179.58,0.00011871,2]
[337971235,1726220923752,-3296.45654375,0.000122,2]
[337971237,1726220981534,786.8,0.00011871,2]
[337971238,1726221006169,250.0,0.00011905,2]
[337971239,1726221017174,2000.0,0.00011908,2]
[337971246,1726221032096,-4390.21581886,0.000122,2]
[337971247,1726221032119,-661.79431665,0.000122,2]
[337971248,1726221032130,-3989.70733026,0.000122,2]
[337971249,1726221032140,-530.81,0.00012271,2]
[337971250,1726221032149,-300.0,0.000123,4]
[337971251,1726221032158,-600.0,0.000124,4]
[337971252,1726221032167,-167.0,0.00012445,2]
[337971253,1726221032177,-6363.04942788,0.00012445,2]
[337971254,1726221032186,-1000.0,0.000125,4]
[337971255,1726221032195,-4759.81530857,0.0001259,2]
[337971256,1726221032207,-325.13875594,0.0001259,2]
[337971257,1726221032216,-1300.0,0.000126,4]
[337971258,1726221032226,-499.99,0.000126,2]
[337971259,1726221032235,-150.99,0.000126,2]
[337971260,1726221032245,-1373.51751421,0.000127,4]
[337971261,1726221032256,-279.69657276,0.000127,4]
[337971262,1726221032267,-46.78591303,0.000127,4]
[337971263,1726221032276,-615.76243314,0.00012788,2]
[337971264,1726221032288,-327.57646686,0.00012788,2]
[337971265,1726221032297,-150.0,0.00012788,2]
[337971266,1726221032308,-150.99,0.00012789,2]
[337971267,1726221032317,-160.68711299,0.00012789,2]
[337971268,1726221032327,-689.2802,0.00012789,2]
[337971269,1726221032336,-948.5528,0.00012789,2]
[337971270,1726221032346,-291.5605,0.00012789,2]
[337971271,1726221032355,-397.68736132,0.00012789,2]
[337971272,1726221032366,-2945.40993868,0.00012789,2]
[337971273,1726221032375,-1000.0,0.00012789,2]
[337971274,1726221032384,-1021.23820817,0.00012789,2]
[337971275,1726221032395,-818.82444517,0.00012789,2]
[337971276,1726221032406,-273.71824666,0.00012789,2]
[337971277,1726221032415,-483.41343673,0.00012789,2]
[337971278,1726221032426,-2016.58656327,0.00012789,2]
[337971279,1726221032435,-12994.55419673,0.00012799,2]
[337971280,1726221032446,-16564.64269666,0.00012799,2]
[337971282,1726221032458,-193.29310661,0.00012799,2]
[337971283,1726221032467,-299.99,0.00012799,2]
[337971284,1726221032476,-186.42689339,0.00012799,2]
[337971285,1726221032486,-711.6,0.00012799,2]
[337971338,1726221038158,-2513.22310661,0.00012799,2]
[337971339,1726221038167,-987.2944958,0.00012799,2]
[337971340,1726221038178,-865.69,0.00012799,2]
[337971341,1726221038190,-3545.23258283,0.00012799,2]
[337971342,1726221038373,-4186.27582778,0.00012799,2]
[337971343,1726221038384,-4505.14618913,0.00012799,2]
[337971344,1726221038395,-308.66866659,0.00012799,2]
[337971345,1726221038407,-2106.75256713,0.00012799,2]
[337971346,1726221038418,-8604.09177074,0.00012799,2]
[337971347,1726221038427,-300.0,0.000128,4]
[337971348,1726221038436,-721.74,0.00012888,2]
[337971349,1726221038446,-500.0,0.00012888,2]
[337971350,1726221038456,-500.0,0.00012888,2]
[337971351,1726221038465,-500.0,0.00012888,2]
[337971352,1726221038474,-500.0,0.00012888,2]
[337971353,1726221038483,-500.0,0.00012888,2]
[337971354,1726221038492,-500.0,0.00012888,2]
[337971355,1726221038501,-500.0,0.00012888,2]
[337971356,1726221038510,-500.0,0.00012888,2]
[337971357,1726221038520,-255.88242841,0.00012888,2]
[337971358,1726221038530,-150.0,0.00012888,2]
[337971359,1726221038539,-500.0,0.00012888,2]
[337971360,1726221038548,-500.0,0.00012888,2]
[337971361,1726221038558,-500.0,0.00012888,2]
[337971362,1726221038573,-500.0,0.00012888,2]
[337971363,1726221038582,-500.0,0.00012888,2]
[337971364,1726221038591,-500.0,0.00012888,2]
[337971365,1726221038600,-500.0,0.00012888,2]
[337971366,1726221038609,-500.0,0.00012888,2]
[337971367,1726221038618,-500.0,0.00012888,2]
[337971368,1726221038627,-500.0,0.00012888,2]
[337971369,1726221038636,-500.0,0.00012888,2]
[337971370,1726221038645,-500.0,0.00012888,2]
[337971371,1726221038654,-500.0,0.00012888,2]
[337971372,1726221038663,-529.99715956,0.00012888,2]
[337971373,1726221038672,-500.0,0.00012888,2]
[337971374,1726221038681,-500.0,0.00012888,2]
[337971375,1726221038694,-500.0,0.00012888,2]
[337971376,1726221038703,-500.0,0.00012888,2]
[337971377,1726221038712,-547.42,0.00012888,2]
[337971378,1726221038722,-500.0,0.00012888,2]
[337971380,1726221038732,-500.0,0.00012888,2]
[337971382,1726221038742,-500.0,0.00012888,2]
[337971383,1726221038751,-500.0,0.00012888,2]
[337971385,1726221038760,-500.0,0.00012888,2]
[337971387,1726221038770,-500.0,0.00012888,2]
[337971389,1726221038779,-521.23,0.00012888,2]
[337971391,1726221038788,-500.0,0.00012888,2]
[337971392,1726221038798,-500.0,0.00012888,2]
[337971394,1726221038807,-500.0,0.00012888,2]
[337971396,1726221038816,-500.0,0.00012888,2]
[337971397,1726221038825,-500.0,0.00012888,2]
[337971398,1726221038834,-500.0,0.00012888,2]
[337971399,1726221038843,-500.0,0.00012888,2]
[337971400,1726221038853,-713.76,0.00012888,2]
[337971401,1726221038862,-596.9,0.00012888,2]
[337971403,1726221038871,-500.0,0.00012888,2]
[337971405,1726221038880,-500.0,0.00012888,2]
[337971406,1726221038889,-500.0,0.00012888,2]
[337971408,1726221038898,-500.0,0.00012888,2]
[337971410,1726221038907,-517.49226964,0.00012888,2]
[337971412,1726221038916,-500.0,0.00012888,2]
[337971414,1726221038925,-500.0,0.00012888,2]
[337971415,1726221038934,-500.0,0.00012888,2]
[337971417,1726221038943,-500.0,0.00012888,2]
[337971419,1726221038953,-500.0,0.00012888,2]
[337971421,1726221038962,-653.05,0.00012888,2]
[337971423,1726221038971,-1819.41,0.00012888,2]
[337971425,1726221038981,-500.0,0.00012888,2]
[337971426,1726221038989,-500.0,0.00012888,2]
[337971428,1726221038998,-500.0,0.00012888,2]
[337971430,1726221039007,-500.0,0.00012888,2]
[337971432,1726221039016,-500.0,0.00012888,2]
[337971434,1726221039025,-500.0,0.00012888,2]
[337971436,1726221039034,-500.0,0.00012888,2]
[337971437,1726221039044,-670.76,0.00012888,2]
[337971439,1726221039053,-500.0,0.00012888,2]
[337971441,1726221039066,-500.0,0.00012888,2]
[337971443,1726221039075,-500.0,0.00012888,2]
[337971445,1726221039084,-500.0,0.00012888,2]
[337971447,1726221039094,-471.84970634,0.00012888,2]
[337971449,1726221039103,-500.0,0.00012888,2]
[337971450,1726221039113,-500.0,0.00012888,2]
[337971452,1726221039122,-500.0,0.00012888,2]
[337971454,1726221039131,-1056.29,0.00012888,2]
[337971456,1726221039141,-500.0,0.00012888,2]
[337971458,1726221039150,-500.0,0.00012888,2]
[337971460,1726221039159,-500.0,0.00012888,2]
[337971462,1726221039168,-500.0,0.00012888,2]
[337971463,1726221039177,-500.0,0.00012888,2]
[337971465,1726221039187,-1178.85,0.00012888,2]
[337971467,1726221039196,-500.0,0.00012888,2]
[337971469,1726221039205,-500.0,0.00012888,2]
[337971471,1726221039215,-517.92,0.00012888,2]
[337971473,1726221039224,-500.0,0.00012888,2]
[337971475,1726221039233,-1108.05,0.00012888,2]
[337971476,1726221039242,-500.0,0.00012888,2]
[337971478,1726221039251,-449.18762764,0.00012888,2]
[337971480,1726221039260,-500.0,0.00012888,2]
[337971482,1726221039269,-209.88314793,0.00012888,2]
[337971484,1726221039278,-1000.98,0.00012888,2]
[337971486,1726221039287,-500.0,0.00012888,2]
[337971487,1726221039296,-500.0,0.00012888,2]
[337971489,1726221039305,-500.0,0.00012888,2]
[337971491,1726221039314,-684.01,0.00012888,2]
[337971493,1726221039323,-500.0,0.00012888,2]
[337971495,1726221039332,-500.0,0.00012888,2]
[337971497,1726221039341,-500.0,0.00012888,2]
[337971499,1726221039350,-500.0,0.00012888,2]
[337971500,1726221039359,-500.0,0.00012888,2]
[337971502,1726221039368,-500.0,0.00012888,2]
[337971504,1726221039377,-500.0,0.00012888,2]
[337971506,1726221039386,-500.0,0.00012888,2]
[337971508,1726221039395,-558.19,0.00012888,2]
[337971510,1726221039405,-2161.82,0.00012888,2]
[337971511,1726221039414,-500.0,0.00012888,2]
[337971513,1726221039423,-500.0,0.00012888,2]
[337971515,1726221039433,-500.0,0.00012888,2]
[337971517,1726221039442,-662.92,0.00012888,2]
[337971519,1726221039451,-500.0,0.00012888,2]
[337971521,1726221039460,-500.0,0.00012888,2]
[337971523,1726221039470,-500.0,0.00012888,2]
[337971525,1726221039479,-4404.04,0.00012888,2]
[337971526,1726221039488,-500.0,0.00012888,2]
[337971528,1726221039497,-810.0,0.00012888,2]
[337971530,1726221039507,-500.0,0.00012888,2]
[337971532,1726221039516,-946.92,0.00012888,2]
[337971534,1726221039525,-500.0,0.00012888,2]
[337971536,1726221039535,-500.0,0.00012888,2]
[337971537,1726221039545,-500.0,0.00012888,2]
[337971539,1726221039554,-500.0,0.00012888,2]
[337971541,1726221039564,-500.0,0.00012888,2]
[337971543,1726221039573,-575.16705348,0.00012888,2]
[337971545,1726221039582,-500.0,0.00012888,2]
[337971546,1726221039592,-500.0,0.00012888,2]
[337971548,1726221039601,-500.0,0.00012888,2]
[337971550,1726221039611,-500.0,0.00012888,2]
[337971552,1726221039620,-500.0,0.00012888,2]
[337971554,1726221039630,-500.0,0.00012888,2]
[337971555,1726221039639,-500.0,0.00012888,2]
[337971557,1726221039648,-826.14,0.00012888,2]
[337971559,1726221039657,-554.52,0.00012888,2]
[337971560,1726221039666,-500.0,0.00012888,2]
[337971562,1726221039675,-4850.51,0.00012888,2]
[337971564,1726221039685,-500.0,0.00012888,2]
[337971566,1726221039698,-500.0,0.00012888,2]
[337971568,1726221039707,-500.0,0.00012888,2]
[337971570,1726221039716,-500.0,0.00012888,2]
[337971571,1726221039725,-500.0,0.00012888,2]
[337971573,1726221039734,-500.0,0.00012888,2]
[337971575,1726221039744,-500.0,0.00012888,2]
[337971577,1726221039754,-879.14,0.00012888,2]
[337971579,1726221039763,-500.0,0.00012888,2]
[337971581,1726221039772,-500.0,0.00012888,2]
[337971583,1726221039782,-721.07,0.00012888,2]
[337971585,1726221039792,-500.0,0.00012888,2]
[337971586,1726221039802,-500.0,0.00012888,2]
[337971588,1726221039812,-610.37977502,0.00012888,2]
[337971590,1726221039821,-991.41,0.00012888,2]
[337971592,1726221039830,-500.0,0.00012888,2]
[337971594,1726221039840,-500.0,0.00012888,2]
[337971596,1726221039850,-500.0,0.00012888,2]
[337971598,1726221039860,-500.0,0.00012888,2]
[337971599,1726221039870,-500.0,0.00012888,2]
[337971601,1726221039879,-763.25,0.00012888,2]
[337971603,1726221039888,-697.34,0.00012888,2]
[337971605,1726221039898,-500.0,0.00012888,2]
[337971607,1726221039908,-3945.34,0.00012888,2]
[337971608,1726221039918,-500.0,0.00012888,2]
[337971610,1726221039927,-666.94,0.00012888,2]
[337971612,1726221039939,-5993.34,0.00012888,2]
[337971614,1726221039948,-500.0,0.00012888,2]
[337971616,1726221039958,-157.42957531,0.00012888,2]
[337971618,1726221039969,-500.0,0.00012888,2]
[337971620,1726221039978,-500.0,0.00012888,2]
[337971621,1726221039988,-500.0,0.00012888,2]
[337971624,1726221040000,-500.0,0.00012888,2]
[337971625,1726221040011,-500.0,0.00012888,2]
[337971627,1726221040021,-159.87774001,0.00012888,2]
[337971629,1726221040030,-500.0,0.00012888,2]
[337971631,1726221040040,-500.0,0.00012888,2]
[337971633,1726221040050,-500.0,0.00012888,2]
[337971635,1726221040060,-500.0,0.00012888,2]
[337971637,1726221040070,-500.0,0.00012888,2]
[337971639,1726221040080,-500.0,0.00012888,2]
[337971640,1726221040089,-420.04674541,0.00012888,2]
[337971642,1726221040099,-332.703537,0.00012888,2]
[337971644,1726221040109,-162.19,0.00012889,2]
[337971646,1726221040119,-7594.8912,0.00012889,2]
[337971648,1726221040129,-1682.2527,0.00012889,2]
[337971650,1726221040139,-2248.4717,0.00012889,2]
[337971652,1726221040149,-245000.0,0.00012889,2]
[337971655,1726221040159,-433.2501,0.00012889,2]
[337971656,1726221040168,-38988.7185,0.00012899,2]
[337971658,1726221040178,-100000.0,0.00012899,2]
[337971660,1726221040188,-10023.6101,0.00012899,2]
[337971662,1726221040198,-1474.6495,0.00012899,2]
[337971664,1726221040208,-7041.0331,0.00012899,2]
[337971665,1726221040217,-1000.0,0.00012899,2]
[337971666,1726221040228,-7500.0,0.00012899,2]
[337971667,1726221040238,-500.0,0.000129,2]
[337971668,1726221040248,-4010.1616,0.000129,2]
[337971669,1726221040258,-14141.3599,0.000129,2]
[337971670,1726221040268,-171.17415423,0.000129,2]
[337971671,1726221040278,-300.0,0.000129,4]
[337971672,1726221040288,-710.02876566,0.000129,2]
[337971673,1726221040299,-1579.31303334,0.000129,2]
[337971674,1726221040309,-200.0,0.00012973,2]
[337971675,1726221040318,-500.0,0.00012973,2]